bitfinex-derivatives/quotes_SOLF0:USTF0_20251101
["timestamp","ask_amount","ask_price","bid_price","bid_amount"]
[1761991191635,9.05609005,185.81,185.78,6.71677867]
[1761991191831,4.65668287,185.8,185.78,6.71677867]
[1761991192031,2.82,185.82,185.78,6.71677867]
[1761991192233,9.05443956,185.81,185.78,6.71677867]
[1761991192432,4.65583418,185.8,185.77,83.05677867]
[1761991192728,2.82,185.82,185.77,83.05677867]
[1761991192933,9.05297629,185.81,185.77,83.05677867]
[1761991193126,4.65500587,185.8,185.77,83.05677867]
[1761991193326,2.82,185.82,185.77,83.05677867]
[1761991193538,9.0518317,185.81,185.77,83.05677867]
[1761991193740,4.65441732,185.8,185.77,83.05677867]
[1761991193939,2.82,185.82,185.78,6.71677867]
[1761991194143,4.65451489,185.81,185.78,6.71677867]
[1761991194341,4.65451489,185.8,185.77,83.05677867]
[1761991194642,2.82,185.82,185.78,6.71677867]
[1761991194845,4.65365967,185.81,185.8,5.03130253]
[1761991195144,4.65365967,185.81,185.8,81.31130253]
[1761991201352,4.65365967,185.81,185.8,81.30791333]
[1761991201750,2.82,185.89,185.8,77.36]
[1761991201955,2.82,185.87,185.84,5.02640767]
[1761991202164,7.2134121,185.86,185.85,76.28]
[1761991202459,2.82,185.86,185.85,76.28]
[1761991202757,2.82,185.96,185.85,76.28]
[1761991202952,4.8432,185.93,185.85,76.28]
[1761991203157,2.82,185.91,185.85,76.28]
[1761991203357,2.82,185.89,185.85,76.28]
[1761991203558,4.39149141,185.88,185.85,76.28]
[1761991203855,2.82,185.92,185.85,76.28]
[1761991204060,7.20989958,185.91,185.85,81.30640767]
[1761991204259,4.38989958,185.9,185.85,81.30640767]
[1761991204559,4.38989958,185.89,185.85,76.28]
[1761991204758,2.82,185.91,185.85,81.30640767]
[1761991205060,4.46736374,185.9,185.85,81.30640767]
[1761991205251,2.82,185.97,185.85,81.30640767]
[1761991205453,6.69500339,186.03,185.85,81.30640767]
[1761991205454,7.2850375,185.96,185.87,5.02640767]
[1761991205649,7.2850375,185.95,185.88,76.28]
[1761991205853,4.4650375,185.94,185.88,76.28]
[1761991206054,4.4650375,185.93,185.88,76.28]
[1761991206260,4.4650375,185.92,185.88,76.28]
[1761991206462,2.82,185.95,185.88,76.28]
[1761991206658,4.46123705,185.94,185.88,76.28]
[1761991206859,7.28123705,185.93,185.88,81.30640767]
[1761991207060,4.8413,186.01,185.88,81.30640767]
[1761991207256,2.82,185.99,185.88,81.30640767]
[1761991207462,2.82,185.97,185.88,76.28]
[1761991207661,2.82,185.95,185.88,76.28]
[1761991207962,4.46090608,185.94,185.88,76.28]
[1761991208165,2.82,185.95,185.88,76.28]
[1761991208360,4.45801433,185.94,185.88,76.28]
[1761991208565,2.82,185.95,185.88,76.28]
[1761991208766,4.45691405,185.94,185.88,76.28]
[1761991208952,2.82,185.95,185.88,76.28]
[1761991209159,4.45691452,185.94,185.88,76.28]
[1761991209856,2.82,185.94,185.89,76.28]
[1761991210361,2.82,185.94,185.86,5.02640767]
[1761991210673,2.82,185.94,185.87,76.28]
[1761991210858,2.82,186.01,185.87,81.30640767]
[1761991211056,2.82,185.99,185.88,5.02640767]
[1761991211364,2.82,185.97,185.87,5.02640767]
[1761991211566,2.82,185.97,185.84,6.7018769]
[1761991211567,2.82,185.95,185.88,76.26]
[1761991211865,2.82,185.95,185.86,5.02640767]
[1761991211866,2.82,185.95,185.89,76.26]
[1761991212062,2.82,185.95,185.85,5.02640767]
[1761991212063,2.82,185.93,185.9,76.26]
[1761991212264,2.82,185.93,185.91,76.26]
[1761991212867,2.82,185.93,185.85,5.02640767]
[1761991213067,2.82,185.93,185.86,76.24]
[1761991214265,2.82,185.93,185.83,5.02640767]
[1761991214468,2.82,185.91,185.84,46.9]
[1761991214667,2.82,185.91,185.85,59.08]
[1761991221569,2.7,185.94,185.85,59.08]
[1761991221771,11.68745755,185.93,185.85,59.08]
[1761991221970,8.98745755,185.92,185.85,59.08]
[1761991222173,2.7,185.93,185.85,59.08]
[1761991222374,2.7,185.97,185.85,59.08]
[1761991222673,2.7,185.95,185.86,5.02640767]
[1761991222873,2.7,185.93,185.86,5.02640767]
[1761991223173,2.7,185.93,185.85,64.10640767]
[1761991225278,2.7,185.93,185.86,5.02640767]
[1761991225979,2.7,185.93,185.85,64.10640767]
[1761991226272,2.7,185.93,185.86,5.02640767]
[1761991229272,4.4604001,185.92,185.86,5.02640767]
[1761991230169,2.7,185.93,185.86,5.02640767]
[1761991230372,4.46188323,185.92,185.86,5.02640767]
[1761991230673,2.7,185.93,185.87,5.02640767]
[1761991230869,2.7,185.93,185.86,5.02640767]
[1761991230870,4.46188552,185.92,185.86,5.02640767]
[1761991231070,2.7,185.93,185.86,5.02640767]
[1761991231264,7.16239173,185.92,185.87,5.02640767]
[1761991231567,2.7,185.91,185.87,5.02640767]
[1761991238183,4.51201869,185.9,185.87,5.02640767]
[1761991238378,2.7,185.91,185.87,81.24640767]
[1761991238683,2.7,185.95,185.87,81.24640767]
[1761991238884,11.76019463,185.94,185.87,81.24640767]
[1761991239077,2.7,185.92,185.89,5.02640767]
[1761991239277,4.51457531,185.91,185.88,5.02640767]
[1761991239578,2.7,185.92,185.88,5.02640767]
[1761991239779,11.76411363,185.91,185.87,5.02640767]
[1761991239982,4.51483977,185.9,185.87,5.02640767]
[1761991240181,2.7,185.91,185.87,81.22640767]
[1761991240385,4.51607737,185.9,185.87,5.02640767]
[1761991240682,2.7,185.91,185.87,81.22640767]
[1761991240887,4.51607737,185.9,185.87,5.02640767]
[1761991241081,2.7,185.91,185.87,5.02640767]
[1761991241384,4.51741337,185.9,185.88,5.02640767]
[1761991241686,2.7,185.91,185.88,5.02640767]
[1761991241880,4.51762992,185.9,185.88,5.02640767]
[1761991242086,4.51921014,185.89,185.88,5.02640767]
[1761991242584,7.21921014,185.89,185.88,5.02640767]
[1761991242784,4.51921014,185.89,185.88,5.02640767]
[1761991244184,9.0773647,185.89,185.88,5.02640767]
[1761991244486,9.0773647,185.89,185.87,82.9018769]
[1761991244683,2.7,185.92,185.87,82.9018769]
[1761991244883,11.78216091,185.91,185.89,5.02888352]
[1761991245081,9.08216091,185.9,185.89,5.02888352]
[1761991245484,11.78216091,185.9,185.89,5.02888352]
[1761991246978,11.78900119,185.9,185.89,5.02888352]
[1761991247282,11.78900119,185.9,185.87,82.9018769]
[1761991247484,9.08900119,185.89,185.87,82.9018769]
[1761991247681,4.52724906,185.88,185.87,82.9018769]
[1761991248280,4.52724906,185.88,185.87,76.2]
[1761991250284,11.95968518,185.88,185.87,76.2]
[1761991250487,11.95968518,185.88,185.87,82.913389]
[1761991250984,11.95968518,185.88,185.87,76.2]
[1761991251188,9.08968518,185.88,185.87,76.2]
[1761991252996,11.95968518,185.88,185.87,76.2]
[1761991253188,11.95968518,185.88,185.87,81.23525072]
[1761991253888,11.95968518,185.88,185.87,5.03525072]
[1761991254193,11.95968518,185.88,185.87,78.47525072]
[1761991255788,11.95968518,185.88,185.87,73.44]
[1761991256792,11.95968518,185.88,185.87,78.47525072]
[1761991257479,11.95968518,185.88,185.87,73.44]
[1761991259594,11.95968518,185.88,185.87,78.47525072]
[1761991261296,11.95968518,185.88,185.87,73.44]
[1761991262192,9.08968518,185.88,185.86,5.03525072]
[1761991262490,11.95968518,185.87,185.85,9.34319449]
[1761991262690,11.95968518,185.86,185.85,9.34319449]
[1761991263389,13.03968518,185.86,185.85,9.34319449]
[1761991267801,9.08968518,185.86,185.85,9.34319449]
[1761991269600,2.87,185.92,185.85,14.37844521]
[1761991269907,9.06357324,185.91,185.86,81.19525072]
[1761991270201,9.06357324,185.9,185.86,81.19525072]
[1761991270498,9.06357324,185.89,185.86,81.19525072]
[1761991270700,2.87,185.95,185.87,5.03525072]
[1761991270899,9.06436977,185.94,185.87,5.03525072]
[1761991271087,9.06436977,185.93,185.87,5.01990087]
[1761991271288,9.06436977,185.92,185.87,5.01990087]
[1761991271490,9.06436977,185.91,185.87,5.01990087]
[1761991271701,9.06436977,185.9,185.87,5.01990087]
[1761991271904,9.06436977,185.89,185.87,5.01990087]
[1761991272202,2.87,185.95,185.88,5.01965743]
[1761991272403,9.0669436,185.94,185.88,5.01965743]
[1761991272707,9.0669436,185.93,185.87,5.01965743]
[1761991272892,9.0669436,185.92,185.87,5.01965743]
[1761991273094,9.0669436,185.91,185.87,5.01965743]
[1761991273295,9.0669436,185.9,185.87,5.01965743]
[1761991273600,9.0669436,185.89,185.87,5.01965743]
[1761991273800,4.51737131,185.88,185.87,5.01965743]
[1761991275305,2.87,185.95,185.86,76.16]
[1761991275505,9.06736452,185.94,185.88,5.02018534]
[1761991275702,11.93736452,185.93,185.88,5.02018534]
[1761991275906,9.06736616,185.92,185.88,5.02018534]
[1761991276199,9.06736616,185.91,185.88,5.02018534]
[1761991276411,9.06736616,185.9,185.88,5.02018534]
[1761991276702,4.51758218,185.89,185.87,5.02018534]
[1761991277006,2.87,185.93,185.87,5.02018534]
[1761991277193,9.06793488,185.92,185.87,5.02018534]
[1761991277397,2.87,185.93,185.87,5.02018534]
[1761991277398,9.06793488,185.91,185.87,5.02018534]
[1761991277595,9.06793488,185.9,185.87,5.02018534]
[1761991277795,4.51793707,185.89,185.87,5.02018534]
[1761991277999,2.87,185.93,185.87,5.02018534]
[1761991278199,11.84893707,185.92,185.87,5.02018534]
[1761991278391,9.06893707,185.91,185.87,5.02018534]
[1761991278599,9.06893707,185.9,185.87,5.02018534]
[1761991278797,4.51843645,185.89,185.87,5.02018534]
[1761991278999,2.78,185.92,185.87,5.02018534]
[1761991279199,9.07196819,185.91,185.87,5.02018534]
[1761991279402,9.07196819,185.9,185.87,5.02018534]
[1761991279705,4.51994665,185.89,185.87,5.02018534]
[1761991279898,2.78,185.92,185.87,5.02018534]
[1761991280100,9.0720148,185.91,185.87,5.02018534]
[1761991280398,9.0720148,185.9,185.87,5.02018534]
[1761991280598,4.52000615,185.89,185.87,5.02018534]
[1761991280800,2.78,185.92,185.87,5.02018534]
[1761991281107,9.07237178,185.91,185.87,5.02018534]
[1761991281309,9.07237178,185.9,185.87,5.02018534]
[1761991281508,4.52014773,185.89,185.87,5.02018534]
[1761991281812,4.52037274,185.88,185.87,5.02018534]
[1761991282109,2.78,185.92,185.87,5.02018534]
[1761991282409,9.07317731,185.91,185.87,5.02018534]
[1761991282607,9.07317731,185.9,185.87,5.02018534]
[1761991282808,4.52054907,185.89,185.87,5.02018534]
[1761991283007,2.78,185.92,185.87,5.02018534]
[1761991283209,9.07337752,185.91,185.87,5.02018534]
[1761991283410,9.07337752,185.9,185.87,5.02018534]
[1761991283607,9.07337752,185.89,185.87,5.02018534]
[1761991283905,2.78,185.92,185.87,5.02018534]
[1761991284106,9.07428446,185.91,185.87,5.02018534]
[1761991284404,9.07428446,185.9,185.87,5.02018534]
[1761991284606,11.85428446,185.89,185.87,5.02018534]
[1761991284909,11.85433476,185.88,185.86,81.18018534]
[1761991285109,4.52110069,185.87,185.86,81.18018534]
[1761991285810,2.78,185.86,185.85,9.34319449]
[1761991286108,11.8540609,185.86,185.85,9.34319449]
[1761991293014,13.9196609,185.83,185.82,71.19]
[1761991300817,16.6996609,185.83,185.82,69.46]
[1761991308815,2.72,185.82,185.78,1.73]
[1761991309020,2.72,185.8,185.78,1.73]
[1761991309222,4.52110069,185.79,185.78,1.73]
[1761991311123,2.72,185.8,185.78,1.73]
[1761991311621,7.5666,185.79,185.77,77.87]
[1761991312118,7.5666,185.79,185.78,1.73]
[1761991312313,4.8466,185.79,185.78,1.73]
[1761991313621,4.8466,185.79,185.77,76.14]
[1761991313622,2.72,185.78,185.77,76.14]
[1761991313822,7.22166971,185.78,185.77,76.14]
[1761991315109,4.50166971,185.78,185.77,77.87]
[1761991315313,4.50166971,185.78,185.77,76.14]
[1761991315314,7.22166971,185.78,185.77,76.14]
[1761991316921,9.03975075,185.78,185.77,77.87]
[1761991317120,4.50166971,185.78,185.77,77.87]
[1761991320426,9.04054062,185.78,185.77,77.87]
[1761991320617,11.76054062,185.78,185.77,76.14]
[1761991320820,7.22166971,185.78,185.77,76.14]
[1761991321019,9.0401016,185.78,185.77,77.87]
[1761991322333,9.0401016,185.78,185.77,76.14]
[1761991322631,9.0401016,185.78,185.77,77.87]
[1761991324435,4.8474,185.77,185.73,1.73]
[1761991324636,4.50166971,185.76,185.74,1.73]
[1761991324838,4.8474,185.77,185.74,1.73]
[1761991325038,4.5521694,185.76,185.74,1.73]
[1761991325240,4.8474,185.77,185.74,1.73]
[1761991325542,4.55322787,185.76,185.74,1.73]
[1761991325743,4.8474,185.77,185.74,1.73]
[1761991325933,4.55322552,185.76,185.74,1.73]
[1761991326135,4.55486525,185.75,185.74,1.73]
[1761991326736,4.55486525,185.75,185.73,77.87]
[1761991326936,4.55486525,185.74,185.73,77.87]
[1761991328133,9.09942369,185.74,185.73,77.87]
[1761991328342,4.55486525,185.74,185.73,77.87]
[1761991328831,4.55486525,185.74,185.73,76.14]
[1761991329038,11.81895142,185.74,185.73,76.14]
[1761991330739,2.72,185.73,185.7,6.75018534]
[1761991331040,9.09895142,185.72,185.7,6.75018534]
[1761991331241,4.55486525,185.71,185.7,6.75018534]
[1761991331646,4.55486525,185.71,185.7,7.83018534]
[1761991331840,2.72,185.79,185.71,1.73]
[1761991332141,2.72,185.77,185.71,1.73]
[1761991332349,7.5684,185.73,185.71,1.73]
[1761991332542,9.10401033,185.72,185.71,1.73]
[1761991332743,9.10401033,185.72,185.7,77.89]
[1761991332944,9.10401033,185.71,185.7,77.89]
[1761991333242,13.95271033,185.71,185.7,76.16]
[1761991334945,13.95271033,185.71,185.7,77.89]
[1761991336451,9.10401033,185.71,185.7,77.89]
[1761991336636,4.55786394,185.71,185.7,77.89]
[1761991348058,1.59786394,185.71,185.7,78.97]
[1761991348360,4.848,185.74,185.7,76.16]
[1761991348561,4.848,185.74,185.71,5.02093549]
[1761991349262,4.848,185.74,185.72,5.02093549]
[1761991349561,2.79,185.82,185.73,76.2]
[1761991349862,4.5466717,185.81,185.76,5.02095199]
[1761991350060,4.5466717,185.8,185.77,76.2]
[1761991350259,4.5466717,185.79,185.77,76.2]
[1761991350459,4.5466717,185.78,185.77,76.2]
[1761991350660,4.8467,185.8,185.77,76.2]
[1761991350966,2.79,185.85,185.77,81.22095199]
[1761991351264,4.5478864,185.84,185.78,5.02095199]
[1761991351460,4.5478864,185.83,185.78,5.02095199]
[1761991351659,4.5478864,185.82,185.78,5.02095199]
[1761991351860,4.5478864,185.81,185.78,5.02095199]
[1761991352058,4.8459,185.82,185.78,5.02095199]
[1761991352364,4.54890385,185.81,185.78,5.02095199]
[1761991352561,4.8459,185.82,185.78,5.02095199]
[1761991352759,4.54821253,185.81,185.78,5.02095199]
[1761991352954,4.8459,185.82,185.78,5.02095199]
[1761991353165,4.54821253,185.81,185.78,5.02095199]
[1761991353365,4.8459,185.82,185.78,5.02095199]
[1761991353567,4.54807766,185.81,185.78,5.02095199]
[1761991353867,4.8459,185.82,185.78,5.02095199]
[1761991354166,4.54807766,185.81,185.78,5.02095199]
[1761991354363,4.8459,185.82,185.78,5.02095199]
[1761991354563,9.39406578,185.81,185.78,5.02095199]
[1761991354764,4.8464,185.81,185.78,5.02095199]
[1761991358870,4.8457,185.83,185.78,5.02095199]
[1761991359066,4.54695901,185.82,185.79,5.02095199]
[1761991359272,2.79,185.88,185.8,76.16]
[1761991359473,2.79,185.86,185.8,76.16]
[1761991359666,2.79,185.84,185.8,76.16]
[1761991359866,4.54604347,185.83,185.8,76.16]
[1761991360062,4.52152675,185.82,185.8,76.16]
[1761991360268,7.6356,185.84,185.8,76.16]
[1761991360465,9.06584022,185.83,185.8,76.16]
[1761991360769,4.52075023,185.82,185.8,76.16]
[1761991360966,4.8456,185.84,185.8,76.16]
[1761991361164,9.06536073,185.83,185.8,76.16]
[1761991361370,4.52051113,185.82,185.8,76.16]
[1761991361568,4.8458,185.83,185.8,76.16]
[1761991361769,4.51981785,185.82,185.8,76.16]
[1761991362068,4.8458,185.83,185.8,76.16]
[1761991362370,4.51979905,185.82,185.8,76.16]
[1761991362571,4.8458,185.83,185.8,76.16]
[1761991368481,4.8451,185.85,185.8,76.16]
[1761991368669,4.51486515,185.84,185.8,76.16]
[1761991368872,4.8451,185.85,185.8,76.16]
[1761991369174,4.8451,185.85,185.8,81.18095199]
[1761991369371,4.51390856,185.84,185.8,76.16]
[1761991369574,4.8451,185.85,185.8,76.16]
[1761991369777,4.51423103,185.84,185.8,76.16]
[1761991370075,4.8451,185.85,185.8,76.16]
[1761991370277,4.51423337,185.84,185.8,76.16]
[1761991370882,4.8451,185.85,185.8,76.16]
[1761991371074,4.5133267,185.84,185.8,76.16]
[1761991371273,4.8451,185.85,185.8,76.16]
[1761991371481,4.51268442,185.84,185.8,76.16]
[1761991371684,7.7051,185.85,185.8,76.16]
[1761991371980,12.21854263,185.84,185.8,76.16]
[1761991372184,7.7056,185.84,185.8,76.16]
[1761991372384,4.8456,185.84,185.8,76.16]
[1761991374587,4.8449,185.86,185.8,76.16]
[1761991374888,4.51202683,185.85,185.8,76.16]
[1761991375188,4.8449,185.86,185.8,76.16]
[1761991380191,4.8444,185.88,185.8,81.18095199]
[1761991380492,4.8444,185.88,185.81,5.02095199]
[1761991380887,4.8444,185.88,185.82,5.02095199]
[1761991382286,7.37326204,185.87,185.82,5.02095199]
[1761991382491,2.86,185.87,185.82,5.02095199]
[1761991382691,4.8444,185.88,185.82,5.02095199]
[1761991382891,4.51288868,185.87,185.82,5.02095199]
[1761991383093,7.7038,185.9,185.82,5.02095199]
[1761991383296,4.51080512,185.89,185.84,5.02095199]
[1761991383489,2.86,185.93,185.85,81.14095199]
[1761991383696,13.90525984,185.92,185.85,81.14095199]
[1761991383901,9.06195984,185.91,185.85,81.14095199]
[1761991384090,4.8433,185.92,185.85,81.14095199]
[1761991384291,9.06196441,185.91,185.85,81.14095199]
[1761991384596,4.54390329,185.9,185.85,81.14095199]
[1761991384893,4.8433,185.92,185.85,81.14095199]
[1761991385091,9.09240498,185.91,185.85,81.14095199]
[1761991385294,4.54390329,185.9,185.85,76.12]
[1761991385597,2.86,185.91,185.85,76.12]
[1761991385797,7.40387448,185.9,185.85,76.12]
[1761991385996,2.86,185.9,185.85,76.12]
[1761991386195,4.5441378,185.89,185.85,76.12]
[1761991386490,4.8433,185.92,185.85,76.12]
[1761991386697,9.09375976,185.91,185.85,76.12]
[1761991386893,4.54460575,185.9,185.85,76.12]
[1761991387089,4.54460575,185.89,185.85,76.12]
[1761991387300,7.7033,185.92,185.85,76.12]
[1761991387501,9.09661045,185.91,185.85,76.12]
[1761991387692,9.09661045,185.9,185.85,76.12]
[1761991387893,4.54603038,185.89,185.85,76.12]
[1761991388095,7.7033,185.92,185.85,76.12]
[1761991388400,9.09660111,185.91,185.85,76.12]
[1761991388603,9.09660111,185.9,185.85,76.12]
[1761991388802,4.54602571,185.89,185.85,76.12]
[1761991388991,7.7033,185.92,185.85,76.12]
[1761991389199,9.10196147,185.91,185.85,81.14095199]
[1761991389403,9.10196147,185.9,185.85,81.14095199]
[1761991389698,4.54870375,185.89,185.85,81.14095199]
[1761991389895,7.7033,185.92,185.85,81.14095199]
[1761991390105,9.10612521,185.91,185.85,81.14095199]
[1761991390397,9.10612521,185.9,185.85,81.14095199]
[1761991390595,4.55078538,185.89,185.85,81.14095199]
[1761991390796,4.55078538,185.88,185.85,81.14095199]
[1761991391102,7.7033,185.92,185.85,81.14095199]
[1761991391304,16.81295436,185.91,185.85,81.14095199]
[1761991391494,2.86,185.89,185.85,81.14095199]
[1761991391698,4.55234917,185.88,185.85,81.14095199]
[1761991391901,4.55234917,185.87,185.85,76.12]
[1761991392098,2.86,185.89,185.85,81.14095199]
[1761991392398,9.11279457,185.88,185.85,81.14095199]
[1761991392598,2.86,185.89,185.85,5.02095199]
[1761991392599,4.55420455,185.87,185.85,5.02095199]
[1761991392796,9.11503974,185.86,185.83,5.02095199]
[1761991393102,4.55420455,185.85,185.84,81.12095199]
[1761991394104,4.55420455,185.85,185.84,76.1]
[1761991397508,7.50420455,185.85,185.82,6.713389]
[1761991397810,2.76,185.83,185.81,5.02387396]
[1761991398106,9.12009844,185.82,185.81,5.02387396]
[1761991398306,11.88009844,185.82,185.81,81.12387396]
[1761991399610,9.12009844,185.82,185.81,81.12387396]
[1761991399809,4.55420455,185.82,185.81,76.1]
[1761991400004,2.76,185.88,185.81,82.813389]
[1761991400211,9.11219592,185.87,185.83,5.02441543]
[1761991400406,4.54850118,185.86,185.83,5.02441543]
[1761991400710,9.11268161,185.85,185.83,5.02441543]
[1761991401008,9.11268161,185.84,185.83,5.02441543]
[1761991401513,4.56418043,185.84,185.82,6.713389]
[1761991401712,4.56418043,185.83,185.82,6.713389]
[1761991402613,2.76,185.88,185.82,6.713389]
[1761991402808,9.11562345,185.87,185.84,5.02558391]
[1761991403014,9.11562345,185.86,185.85,76.1]
[1761991403312,9.11562345,185.86,185.85,81.12558391]
[1761991405913,12.00562345,185.86,185.85,81.12671114]
[1761991406111,12.00562345,185.86,185.85,76.1]
[1761991406419,2.89,185.85,185.83,5.02671114]
[1761991406716,2.89,185.85,185.84,76.1]
[1761991406908,12.00661787,185.85,185.84,76.1]
[1761991407109,12.00661787,185.85,185.84,81.12671114]
[1761991409017,12.00661787,185.85,185.84,76.1]
[1761991415830,12.00604695,185.85,185.84,76.1]
[1761991421327,2.89,185.84,185.82,5.02671114]
[1761991421622,2.89,185.82,185.8,81.14671114]
[1761991421926,12.00604695,185.81,185.8,81.14671114]
[1761991422428,12.00604695,185.81,185.8,76.12]
[1761991424018,16.85224695,185.81,185.8,76.12]
[1761991424218,2.89,185.8,185.77,81.14671114]
[1761991424415,9.11604695,185.79,185.77,76.12]
[1761991424618,9.11604695,185.78,185.77,76.12]
[1761991425916,2.89,185.8,185.77,76.12]
[1761991426123,14.02196121,185.79,185.77,76.12]
[1761991426324,9.17516121,185.78,185.77,76.12]
[1761991429738,11.88516121,185.78,185.77,76.12]
[1761991432735,2.71,185.76,185.72,5.02671114]
[1761991432930,7.34076621,185.75,185.73,76.12]
[1761991433142,4.63076621,185.74,185.73,76.12]
[1761991441448,11.87411588,185.74,185.73,76.12]
[1761991441642,2.71,185.72,185.69,5.01509562]
[1761991441842,4.62074849,185.71,185.7,76.14]
[1761991442245,2.71,185.78,185.7,76.14]
[1761991442449,4.8477,185.76,185.7,76.14]
[1761991442743,11.86275457,185.75,185.7,76.14]
[1761991442946,9.15275457,185.74,185.7,76.14]
[1761991443246,4.62001621,185.73,185.7,76.14]
[1761991443454,4.62001621,185.72,185.7,76.14]
[1761991443752,2.71,185.75,185.7,76.14]
[1761991443952,9.15105491,185.74,185.7,76.14]
[1761991444149,4.6191586,185.73,185.7,76.14]
[1761991444451,2.71,185.75,185.7,76.14]
[1761991444652,9.14948592,185.74,185.7,76.14]
[1761991444855,4.61836679,185.73,185.7,76.14]
[1761991445054,4.61836679,185.72,185.7,76.14]
[1761991445252,2.71,185.75,185.7,76.14]
[1761991445461,9.11857504,185.74,185.7,76.14]
[1761991445662,4.58794875,185.73,185.7,76.14]
[1761991445864,4.58794875,185.72,185.7,76.14]
[1761991446064,7.558,185.75,185.7,76.14]
[1761991446364,9.11758368,185.74,185.7,76.14]
[1761991446565,4.58744946,185.73,185.7,76.14]
[1761991446756,4.58744946,185.72,185.7,76.14]
[1761991446955,7.558,185.75,185.7,76.14]
[1761991447253,9.12572125,185.74,185.7,76.14]
[1761991447455,7.30160911,185.73,185.68,5.01509562]
[1761991447655,9.12497194,185.72,185.67,81.15509562]
[1761991447853,4.59160911,185.71,185.68,76.14]
[1761991448067,2.71,185.73,185.68,76.14]
[1761991448363,9.12299785,185.72,185.68,76.14]
[1761991448564,4.59040408,185.71,185.68,76.14]
[1761991448754,4.59040408,185.7,185.68,76.14]
[1761991448951,7.5585,185.73,185.68,76.14]
[1761991449152,9.12421815,185.72,185.68,76.14]
[1761991449357,4.59101842,185.71,185.68,76.14]
[1761991449560,4.59101842,185.7,185.68,76.14]
[1761991449764,7.5585,185.73,185.68,76.14]
[1761991450064,9.12412953,185.72,185.68,76.14]
[1761991450264,4.59097383,185.71,185.68,76.14]
[1761991450463,4.59097383,185.7,185.68,76.14]
[1761991450665,7.5585,185.73,185.68,76.14]
[1761991450863,9.12585995,185.72,185.68,76.14]
[1761991451065,4.59184469,185.71,185.68,76.14]
[1761991451265,4.59184469,185.7,185.68,76.14]
[1761991451461,4.8485,185.73,185.68,81.15509562]
[1761991451660,4.59149668,185.72,185.68,81.15509562]
[1761991451862,4.59149668,185.71,185.68,81.15509562]
[1761991452063,4.8485,185.73,185.68,81.15509562]
[1761991452270,4.59125539,185.72,185.68,81.15509562]
[1761991452472,4.59125539,185.71,185.68,81.15509562]
[1761991452664,4.8485,185.73,185.68,81.15509562]
[1761991452864,4.59189457,185.72,185.68,81.15509562]
[1761991453064,4.59189457,185.71,185.68,81.15509562]
[1761991453371,4.8485,185.73,185.68,81.15509562]
[1761991453572,4.5924569,185.72,185.68,81.15509562]
[1761991453768,4.5924569,185.71,185.68,81.15509562]
[1761991453973,4.8485,185.73,185.68,81.15509562]
[1761991454273,4.5924569,185.72,185.68,81.15509562]
[1761991454470,4.5924569,185.71,185.68,81.15509562]
[1761991454663,4.8485,185.73,185.68,81.15509562]
[1761991454868,4.59247076,185.72,185.68,81.15509562]
[1761991455172,4.59247076,185.71,185.68,81.15509562]
[1761991455468,4.8485,185.73,185.68,81.15509562]
[1761991455773,4.59295374,185.72,185.68,81.15509562]
[1761991455968,4.59295374,185.71,185.68,81.15509562]
[1761991456170,4.8485,185.73,185.68,81.15509562]
[1761991456367,4.59332815,185.72,185.68,81.15509562]
[1761991456572,4.59332815,185.71,185.68,81.15509562]
[1761991456773,4.8485,185.73,185.68,81.15509562]
[1761991456973,4.59332815,185.72,185.68,81.15509562]
[1761991457175,4.59332815,185.71,185.68,81.15509562]
[1761991457375,2.95,185.72,185.68,81.15509562]
[1761991457576,12.07956658,185.71,185.68,76.14]
[1761991457774,4.5937327,185.7,185.68,76.14]
[1761991457976,2.95,185.83,185.68,76.14]
[1761991458171,2.95,185.81,185.68,76.14]
[1761991458377,2.95,185.72,185.68,76.14]
[1761991458583,9.12954549,185.71,185.68,76.14]
[1761991458780,4.59371161,185.7,185.68,76.14]